fUST/lending_fUST_20250226
["ID","MTS","AMOUNT","RATE_DAILY","PERIOD"]
[354553167,1740574218261,-2354.76,0.00062191,120]
[354553168,1740574218291,-212.73,0.00062191,120]
[354553169,1740574218321,-614.03,0.00062191,120]
[354553170,1740574218354,-8704.1,0.00062191,120]
[354553171,1740574218384,-623.77,0.00062191,120]
[354553172,1740574218411,-500.0,0.00062191,120]
[354553173,1740574218438,-2994.571,0.00062668,120]
[354553174,1740574218466,-157.52665945,0.00063003,5]
[354553175,1740574218494,-12944.58,0.00063013,120]
[354553176,1740574218523,-250.0,0.00063287,120]
[354553177,1740574218560,-191.0883796,0.00063602,120]
[354553178,1740574218594,-500.0,0.00063873,14]
[354553179,1740574218621,-499.921,0.00063873,15]
[354553180,1740574218648,-500.0,0.00063873,14]
[354553181,1740574218677,-1391.0,0.0006389,120]
[354553182,1740574218706,-630.1066378,0.0006389,5]
[354553183,1740574218733,-500.0,0.000639,120]
[354553184,1740574218759,-500.0,0.000639,120]
[354553185,1740574218786,-500.0,0.000639,120]
[354553186,1740574218811,-500.0,0.000639,120]
[354553187,1740574218840,-500.0,0.000639,120]
[354553188,1740574218867,-500.0,0.000639,120]
[354553189,1740574218894,-500.0,0.000639,120]
[354553190,1740574218921,-500.0,0.000639,120]
[354553191,1740574218948,-500.0,0.000639,120]
[354553192,1740574218975,-500.0,0.000639,120]
[354553193,1740574219000,-500.0,0.000639,120]
[354553194,1740574219026,-500.0,0.000639,120]
[354553195,1740574219053,-500.0,0.000639,120]
[354553196,1740574219082,-500.0,0.000639,120]
[354553197,1740574219109,-468.18,0.000639,120]
[354553198,1740574219134,-160661.78904213,0.000639,120]
[354553199,1740574219161,-500.0,0.000639,120]
[354553200,1740574219187,-500.0,0.000639,120]
[354553201,1740574219212,-500.0,0.000639,120]
[354553202,1740574219238,-500.0,0.000639,120]
[354553203,1740574219264,-500.0,0.000639,120]
[354553204,1740574219290,-500.0,0.000639,120]
[354553205,1740574219317,-500.0,0.000639,120]
[354553206,1740574219349,-500.0,0.000639,120]
[354553207,1740574219412,-500.0,0.000639,120]
[354553208,1740574219440,-500.0,0.000639,120]
[354553209,1740574219466,-500.0,0.000639,120]
[354553210,1740574219493,-500.0,0.000639,120]
[354553211,1740574219523,-500.0,0.000639,120]
[354553212,1740574219551,-500.0,0.000639,120]
[354553213,1740574219578,-500.0,0.000639,120]
[354553214,1740574219605,-500.0,0.000639,120]
[354553215,1740574219632,-500.0,0.000639,120]
[354553216,1740574219657,-500.0,0.000639,120]
[354553217,1740574219683,-500.0,0.000639,120]
[354553218,1740574219710,-500.0,0.000639,120]
[354553219,1740574219736,-500.0,0.000639,120]
[354553220,1740574219761,-500.0,0.000639,120]
[354553221,1740574219795,-500.0,0.000639,120]
[354553222,1740574219822,-500.0,0.000639,120]
[354553223,1740574219856,-500.0,0.000639,120]
[354553224,1740574219888,-500.0,0.000639,120]
[354553225,1740574219916,-500.0,0.000639,120]
[354553226,1740574219943,-500.0,0.000639,120]
[354553227,1740574219969,-500.0,0.000639,120]
[354553228,1740574219994,-500.0,0.000639,120]
[354553229,1740574220019,-550.41,0.000639,120]
[354553230,1740574220044,-1391.0,0.00063979,120]
[354553231,1740574220072,-157.52665945,0.00064647,6]
[354553232,1740574220098,-925.76,0.00064657,120]
[354553233,1740574220123,-500.0,0.00064657,2]
[354553234,1740574220151,-500.0,0.00064657,120]
[354553235,1740574220177,-500.0,0.00064657,120]
[354553236,1740574220204,-515.49,0.00064657,120]
[354553237,1740574220230,-501.02,0.00064657,120]
[354553238,1740574220260,-593.77,0.00064657,15]
[354553239,1740574220286,-1159.7,0.00064657,120]
[354553240,1740574220312,-208.98017624,0.00064657,120]
[354553241,1740574220340,-500.0,0.00064657,120]
[354553242,1740574220367,-2082.16,0.00064657,120]
[354553243,1740574220393,-612.21,0.00064657,120]
[354553244,1740574220418,-286.69333769,0.00064657,120]
[354553245,1740574220444,-500.0,0.00064657,120]
[354553246,1740574220469,-500.0,0.00064657,120]
[354553247,1740574220501,-348.29050248,0.00064657,120]
[354553248,1740574220529,-500.0,0.00064657,120]
[354553249,1740574220555,-500.0,0.00064657,120]
[354553250,1740574220582,-688.17,0.00064657,120]
[354553251,1740574220609,-527.24,0.00064657,120]
[354553252,1740574220637,-1451.47,0.00064657,120]
[354553253,1740574220664,-604.82461322,0.00064657,120]
[354553254,1740574220690,-737.18,0.00064657,120]
[354553255,1740574220717,-6042.79,0.00064657,7]
[354553256,1740574220743,-500.0,0.00064657,120]
[354553257,1740574220769,-500.0,0.00064657,120]
[354553258,1740574220795,-500.0,0.00064657,120]
[354553259,1740574220820,-500.0,0.00064657,120]
[354553260,1740574220848,-969.4,0.00064657,3]
[354553261,1740574220877,-1329.29,0.00064657,120]
[354553262,1740574220903,-2354.76,0.00064657,120]
[354553263,1740574220928,-614.03,0.00064657,120]
[354553264,1740574220954,-8704.1,0.00064657,120]
[354553265,1740574220980,-623.77,0.00064657,120]
[354553266,1740574221005,-500.0,0.00064657,120]
[354553267,1740574221029,-2707.67,0.000647,30]
[354553268,1740574221055,-500.0,0.000649,115]
[354553269,1740574221081,-500.0,0.00064973,7]
[354553270,1740574221106,-500.0,0.00064973,14]
[354553271,1740574221132,-1417.73993505,0.0006499,6]
[354553272,1740574221158,-479.95133017,0.00064999,31]
[354553273,1740574221185,-500.0,0.00064999,120]
[354553274,1740574221212,-448.34954139,0.00064999,120]
[354553275,1740574221238,-628.15289739,0.00065,120]
[354553276,1740574221266,-10422.42665081,0.00065,62]
[354553277,1740574221292,-625548.10550867,0.00065,120]
[354553278,1740574221318,-500.0,0.00065,14]
[354553279,1740574221347,-500.0,0.00065,14]
[354553280,1740574221373,-500.0,0.00065,14]
[354553281,1740574221399,-500.0,0.00065,14]
[354553282,1740574221425,-500.0,0.00065,14]
[354553283,1740574221451,-500.0,0.00065,14]
[354553284,1740574221477,-500.0,0.00065,14]
[354553285,1740574221504,-500.0,0.00065,14]
[354553286,1740574221534,-500.0,0.00065,14]
[354553287,1740574221561,-500.0,0.00065,14]
[354553288,1740574221588,-500.0,0.00065,14]
[354553289,1740574221614,-500.0,0.00065,14]
[354553290,1740574221641,-500.0,0.00065,14]
[354553291,1740574221667,-500.0,0.00065,14]
[354553292,1740574221693,-500.0,0.00065,14]
[354553293,1740574221718,-500.0,0.00065,14]
[354553294,1740574221744,-500.0,0.00065,14]
[354553295,1740574221771,-500.0,0.00065,14]
[354553296,1740574221796,-500.0,0.00065,14]
[354553297,1740574221822,-548.1,0.00065,14]
[354553298,1740574221850,-500.0,0.00065,14]
[354553299,1740574221875,-151.0,0.00065,120]
[354553300,1740574221903,-151.0,0.00065,120]
[354553301,1740574221930,-151.0,0.00065,120]
[354553302,1740574221955,-151.0,0.00065,120]
[354553303,1740574221981,-151.0,0.00065,120]
[354553304,1740574222008,-151.0,0.00065,120]
[354553305,1740574222035,-192.279896,0.00065,110]
[354553306,1740574222061,-278.38996,0.00065,120]
[354553307,1740574222089,-151.0,0.00065,120]
[354553308,1740574222116,-151.0,0.00065,120]
[354553309,1740574222143,-151.0,0.00065,120]
[354553310,1740574222172,-188.300678,0.00065,120]
[354553311,1740574222199,-151.0,0.00065,120]
[354553312,1740574222226,-151.0,0.00065,120]
[354553313,1740574222253,-151.0,0.00065,120]
[354553314,1740574222281,-151.0,0.00065,120]
[354553315,1740574222310,-384.96878488,0.00065495,2]
[354553316,1740574222341,-710.54,0.00066575,120]
[354553317,1740574222370,-2000.0,0.000667,89]
[354553318,1740574222398,-152.1,0.000667,30]
[354553319,1740574222426,-1668.14,0.00067123,120]
[354553320,1740574222453,-925.76,0.00067123,120]
[354553321,1740574222486,-500.0,0.00067123,2]
[354553322,1740574222525,-491.36771368,0.00067123,120]
[354553323,1740574222553,-500.0,0.00067123,120]
[354553324,1740574222586,-515.49,0.00067123,120]
[354553325,1740574222614,-593.77,0.00067123,15]
[354553326,1740574222642,-1159.7,0.00067123,120]
[354553327,1740574222669,-500.0,0.00067123,120]
[354553328,1740574222695,-150.3,0.00067123,120]
[354553329,1740574222730,-2082.16,0.00067123,120]
[354553330,1740574222757,-612.21,0.00067123,120]
[354553331,1740574222786,-500.0,0.00067123,120]
[354553332,1740574222815,-500.0,0.00067123,120]
[354553333,1740574222844,-500.0,0.00067123,120]
[354553334,1740574222871,-500.0,0.00067123,120]
[354553335,1740574222898,-688.17,0.00067123,120]
[354553336,1740574222924,-12944.58,0.00067123,120]
[354553337,1740574222950,-527.24,0.00067123,120]
[354553338,1740574222975,-1451.47,0.00067123,120]
[354553339,1740574223002,-737.18,0.00067123,120]
[354553340,1740574223030,-6042.79,0.00067123,7]
[354553341,1740574223058,-246.99,0.00067123,120]
[354553342,1740574223086,-500.0,0.00067123,120]
[354553343,1740574223112,-500.0,0.00067123,120]
[354553344,1740574223139,-500.0,0.00067123,120]
[354553345,1740574223165,-1329.29,0.00067123,120]
[354553346,1740574223192,-969.4,0.00067123,3]
[354553347,1740574223220,-2354.76,0.00067123,120]
[354553348,1740574223246,-614.03,0.00067123,120]
[354553349,1740574223274,-8704.1,0.00067123,120]
[354553350,1740574223301,-623.77,0.00067123,120]
[354553351,1740574223330,-500.0,0.00067123,120]
[354553352,1740574223357,-297.99984559,0.00067397,120]
[354553353,1740574223388,-700.0,0.000677,91]
[354553354,1740574223543,-1000.0,0.0006788,120]
[354553355,1740574223570,-1000.0,0.0006788,120]
[354553356,1740574223598,-1000.0,0.0006788,120]
[354553357,1740574223623,-1000.0,0.0006788,120]
[354553358,1740574223648,-1000.0,0.00068493,60]
[354553359,1740574223673,-1000.0,0.00068493,60]
[354553360,1740574223698,-1000.0,0.00068493,60]
[354553361,1740574223723,-1000.0,0.00068493,60]
[354553362,1740574223749,-1000.0,0.00068493,60]
[354553363,1740574223775,-711.77611592,0.00068493,60]
[354553364,1740574223800,-500.0,0.00068493,120]
[354553365,1740574223825,-500.0,0.00068493,120]
[354553366,1740574223850,-528.55187836,0.00068493,120]
[354553367,1740574223874,-1000.0,0.00068493,120]
[354553368,1740574223898,-503.74022399,0.00068493,120]
[354553369,1740574223923,-2934.0,0.00068493,10]
[354553370,1740574223948,-2445.0,0.00068493,10]
[354553371,1740574223972,-2037.5,0.00068493,10]
[354553372,1740574223997,-151.17719057,0.00068493,120]
[354553373,1740574224025,-151.17719057,0.00068493,120]
[354553374,1740574224050,-151.17719057,0.00068493,120]
[354553375,1740574224074,-151.17719057,0.00068493,120]
[354553376,1740574224100,-151.17719057,0.00068493,120]
[354553377,1740574224125,-151.17719057,0.00068493,120]
[354553378,1740574224154,-151.17719057,0.00068493,120]
[354553379,1740574224180,-151.17719057,0.00068493,120]
[354553380,1740574224207,-151.17719057,0.00068493,120]
[354553381,1740574224231,-151.17719057,0.00068493,120]
[354553382,1740574224257,-151.17719057,0.00068493,120]
[354553383,1740574224282,-151.17,0.00068493,120]
[354553384,1740574224308,-336.28887239,0.00068493,120]
[354553385,1740574224336,-336.28887239,0.00068493,120]
[354553386,1740574224362,-336.28887239,0.00068493,120]
[354553387,1740574224387,-336.28887239,0.00068493,120]
[354553388,1740574224415,-336.28887239,0.00068493,120]
[354553389,1740574224440,-336.28887239,0.00068493,120]
[354553390,1740574224467,-336.28887239,0.00068493,120]
[354553391,1740574224492,-336.28887239,0.00068493,120]
[354553392,1740574224520,-336.28887239,0.00068493,120]
[354553393,1740574224547,-336.28887239,0.00068493,120]
[354553394,1740574224572,-336.28887239,0.00068493,120]
[354553395,1740574224602,-336.28887239,0.00068493,120]
[354553396,1740574224627,-336.28887239,0.00068493,120]
[354553397,1740574224653,-336.28887239,0.00068493,120]
[354553398,1740574224679,-336.28887239,0.00068493,120]
[354553399,1740574224706,-336.28887239,0.00068493,120]
[354553400,1740574224732,-336.28887239,0.00068493,120]
[354553401,1740574224758,-336.28887239,0.00068493,120]
[354553402,1740574224784,-336.28887239,0.00068493,120]
[354553403,1740574224810,-336.28,0.00068493,120]
[354553404,1740574224838,-784.67403558,0.00068493,120]
[354553405,1740574224868,-784.67403558,0.00068493,120]
[354553406,1740574224899,-784.67403558,0.00068493,120]
[354553407,1740574224926,-784.67403558,0.00068493,120]
[354553408,1740574224952,-784.67403558,0.00068493,120]
[354553409,1740574224979,-784.67403558,0.00068493,120]
[354553410,1740574225005,-784.67403558,0.00068493,120]
[354553411,1740574225030,-784.67403558,0.00068493,120]
[354553412,1740574225056,-784.67403558,0.00068493,120]
[354553413,1740574225086,-784.67403558,0.00068493,120]
[354553414,1740574225116,-784.67403558,0.00068493,120]
[354553415,1740574225143,-784.67403558,0.00068493,120]
[354553416,1740574225171,-784.67403558,0.00068493,120]
[354553417,1740574225198,-784.67403558,0.00068493,120]
[354553418,1740574225225,-784.67403558,0.00068493,120]
[354553419,1740574225252,-784.67403558,0.00068493,120]
[354553420,1740574225280,-784.67403558,0.00068493,120]
[354553421,1740574225308,-180.62810707,0.00068493,120]
[354553422,1740574225337,-180.62810707,0.00068493,120]
[354553423,1740574225364,-180.62810707,0.00068493,120]
[354553424,1740574225391,-180.62810707,0.00068493,120]
[354553425,1740574225419,-180.62810707,0.00068493,120]
[354553426,1740574225445,-180.62810707,0.00068493,120]
[354553427,1740574225471,-180.62810707,0.00068493,120]
[354553428,1740574225498,-180.62810707,0.00068493,120]
[354553429,1740574225527,-180.62810707,0.00068493,120]
[354553430,1740574225555,-180.62810707,0.00068493,120]
[354553431,1740574225584,-180.62810707,0.00068493,120]
[354553432,1740574225611,-180.62810707,0.00068493,120]
[354553433,1740574225636,-180.62810707,0.00068493,120]
[354553434,1740574225661,-180.62810707,0.00068493,120]
[354553435,1740574225687,-180.62810707,0.00068493,120]
[354553436,1740574225722,-180.62810707,0.00068493,120]
[354553437,1740574225757,-180.62810707,0.00068493,120]
[354553438,1740574225784,-180.62810707,0.00068493,120]
[354553439,1740574225810,-180.62810707,0.00068493,120]
[354553440,1740574225837,-180.62,0.00068493,120]
[354553441,1740574225862,-421.46558316,0.00068493,120]
[354553442,1740574225887,-421.46558316,0.00068493,120]
[354553443,1740574225913,-421.46558316,0.00068493,120]
[354553444,1740574225938,-421.46558316,0.00068493,120]
[354553445,1740574225963,-421.46558316,0.00068493,120]
[354553446,1740574225988,-421.46558316,0.00068493,120]
[354553447,1740574226014,-421.46558316,0.00068493,120]
[354553448,1740574226039,-421.46558316,0.00068493,120]
[354553449,1740574226065,-421.46558316,0.00068493,120]
[354553450,1740574226093,-421.46558316,0.00068493,120]
[354553451,1740574226119,-421.46558316,0.00068493,120]
[354553452,1740574226145,-421.46558316,0.00068493,120]
[354553453,1740574226172,-784.67403558,0.00068852,120]
[354553454,1740574226198,-1000.0,0.00069,120]
[354553455,1740574226224,-1000.0,0.00069352,14]
[354553456,1740574226250,-784.67403558,0.00069376,120]
[354553457,1740574226276,-1668.14,0.00069589,120]
[354553458,1740574226302,-925.76,0.00069589,120]
[354553459,1740574226326,-500.0,0.00069589,2]
[354553460,1740574226355,-351.45,0.00069589,120]
[354553461,1740574226381,-515.49,0.00069589,120]
[354553462,1740574226407,-151.0,0.00069589,120]
[354553463,1740574226432,-151.0,0.00069589,120]
[354553464,1740574226457,-593.77,0.00069589,15]
[354553465,1740574226482,-268.049902,0.00069589,120]
[354553466,1740574226613,-1159.7,0.00069589,120]
[354553467,1740574226639,-500.0,0.00069589,120]
[354553468,1740574226666,-2082.16,0.00069589,120]
[354553469,1740574226692,-612.21,0.00069589,120]
[354553470,1740574226722,-500.0,0.00069589,120]
[354553471,1740574226749,-151.0,0.00069589,120]
[354553472,1740574226776,-151.0,0.00069589,120]
[354553473,1740574226803,-500.0,0.00069589,120]
[354553474,1740574226831,-500.0,0.00069589,120]
[354553475,1740574226859,-500.0,0.00069589,120]
[354553476,1740574226885,-688.17,0.00069589,120]
[354553477,1740574226912,-151.0,0.00069589,120]
[354553478,1740574226938,-151.0,0.00069589,120]
[354553479,1740574226964,-527.24,0.00069589,120]
[354553480,1740574226990,-1451.47,0.00069589,120]
[354553481,1740574227017,-737.18,0.00069589,120]
[354553482,1740574227045,-6042.79,0.00069589,7]
[354553483,1740574227071,-500.0,0.00069589,120]
[354553484,1740574227101,-500.0,0.00069589,120]
[354553485,1740574227127,-500.0,0.00069589,120]
[354553486,1740574227154,-1329.29,0.00069589,120]
[354553487,1740574227181,-969.4,0.00069589,3]
[354553488,1740574227209,-2354.76,0.00069589,120]
[354553489,1740574227235,-614.03,0.00069589,120]
[354553490,1740574227263,-151.0,0.00069589,120]
[354553491,1740574227292,-8704.1,0.00069589,120]
[354553492,1740574227319,-623.77,0.00069589,120]
[354553493,1740574227349,-500.0,0.00069589,120]
[354553494,1740574227375,-710.54,0.00069863,120]
[354553495,1740574227402,-500.0,0.0006987,120]
[354553496,1740574227428,-500.0,0.0006987,120]
[354553497,1740574227454,-500.0,0.0006987,120]
[354553498,1740574227480,-500.0,0.0006987,120]
[354553499,1740574227507,-500.0,0.0006987,120]
[354553500,1740574227536,-500.0,0.0006987,120]
[354553501,1740574227564,-500.0,0.0006987,120]
[354553502,1740574227593,-500.0,0.000699,120]
[354553503,1740574227619,-500.0,0.000699,120]
[354553504,1740574227644,-500.0,0.000699,120]
[354553505,1740574227669,-500.0,0.000699,120]
[354553506,1740574227696,-500.0,0.000699,120]
[354553507,1740574227721,-500.0,0.000699,120]
[354553508,1740574227747,-500.0,0.000699,120]
[354553509,1740574227772,-500.0,0.000699,120]
[354553510,1740574227797,-500.0,0.000699,120]
[354553511,1740574227821,-500.0,0.000699,120]
[354553512,1740574227847,-500.0,0.000699,120]
[354553513,1740574227872,-500.0,0.000699,120]
[354553514,1740574227898,-500.0,0.000699,120]
[354553515,1740574227923,-500.0,0.000699,120]
[354553516,1740574227948,-500.0,0.000699,120]
[354553517,1740574227974,-500.0,0.000699,120]
[354553518,1740574228000,-500.0,0.000699,120]
[354553519,1740574228026,-500.0,0.000699,120]
[354553520,1740574228051,-500.0,0.000699,120]
[354553521,1740574228076,-500.0,0.000699,120]
[354553522,1740574228102,-500.0,0.000699,120]
[354553523,1740574228126,-500.0,0.000699,120]
[354553524,1740574228151,-500.0,0.000699,120]
[354553525,1740574228176,-500.0,0.000699,120]
[354553526,1740574228203,-500.0,0.000699,120]
[354553527,1740574228228,-500.0,0.000699,120]
[354553528,1740574228253,-500.0,0.000699,120]
[354553529,1740574228278,-784.67,0.000699,120]
[354553530,1740574228302,-38690.22485548,0.0007,30]
[354553531,1740574228326,-38690.22485548,0.0007,30]
[354553532,1740574228353,-28125.8971833,0.0007,30]
[354553533,1740574228377,-1000.0,0.0007,120]
[354553534,1740574228402,-1000.0,0.0007,120]
[354553535,1740574228427,-1000.0,0.0007,120]
[354553536,1740574228451,-248.862436,0.0007,120]
[354553537,1740574228477,-151.0,0.0007,120]
[354553538,1740574228502,-151.0,0.0007,120]
[354553539,1740574228531,-151.0,0.0007,120]
[354553540,1740574228558,-151.0,0.0007,120]
[354553541,1740574228583,-151.0,0.0007,120]
[354553542,1740574228608,-151.0,0.0007,120]
[354553543,1740574228635,-1000.0,0.00070452,14]
[354553544,1740574228660,-12944.58,0.00071232,120]
[354553545,1740574228684,-1500.0,0.00071259,15]
[354553546,1740574228708,-1668.14,0.00072054,120]
[354553547,1740574228732,-925.76,0.00072054,120]
[354553548,1740574228756,-515.49,0.00072054,120]
[354553549,1740574228780,-593.77,0.00072054,15]
[354553550,1740574228803,-1159.7,0.00072054,120]
[354553551,1740574228828,-500.0,0.00072054,120]
[354553552,1740574228856,-2082.16,0.00072054,120]
[354553553,1740574228881,-612.21,0.00072054,120]
[354553554,1740574228908,-500.0,0.00072054,120]
[354553555,1740574228934,-398.49,0.00072054,120]
[354553556,1740574228960,-500.0,0.00072054,120]
[354553557,1740574228985,-500.0,0.00072054,120]
[354553558,1740574229010,-688.17,0.00072054,120]
[354553559,1740574229035,-527.24,0.00072054,120]
[354553560,1740574229059,-1451.47,0.00072054,120]
[354553561,1740574229085,-737.18,0.00072054,120]
[354553562,1740574229111,-6042.79,0.00072054,7]
[354553563,1740574229136,-500.0,0.00072054,120]
[354553564,1740574229161,-500.0,0.00072054,120]
[354553565,1740574229185,-500.0,0.00072054,120]
[354553566,1740574229215,-1329.29,0.00072054,120]
[354553567,1740574229241,-969.4,0.00072054,3]
[354553568,1740574229267,-2354.76,0.00072054,120]
[354553569,1740574229293,-614.03,0.00072054,120]
[354553570,1740574229319,-8704.1,0.00072054,120]
[354553571,1740574229347,-623.77,0.00072054,120]
[354553572,1740574229374,-500.0,0.00072054,120]
[354553573,1740574229401,-2707.67,0.000721,30]
[354553574,1740574229427,-710.54,0.0007315,120]
[354553575,1740574229453,-28125.8971833,0.00073191,30]
[354553576,1740574229479,-2618.45329131,0.0007442,2]
[354553577,1740574229506,-1668.14,0.0007452,120]
[354553578,1740574229534,-925.76,0.0007452,120]
[354553579,1740574229563,-515.49,0.0007452,120]
[354553580,1740574229592,-151.0,0.0007452,120]
[354553581,1740574229618,-593.77,0.0007452,15]
[354553582,1740574229756,-1159.7,0.0007452,120]
[354553583,1740574229783,-500.0,0.0007452,120]
[354553584,1740574229812,-2082.16,0.0007452,120]
[354553585,1740574229840,-612.21,0.0007452,120]
[354553586,1740574229867,-500.0,0.0007452,120]
[354553587,1740574229895,-500.0,0.0007452,120]
[354553588,1740574229923,-500.0,0.0007452,120]
[354553589,1740574229950,-688.17,0.0007452,120]
[354553590,1740574229977,-151.0,0.0007452,120]
[354553591,1740574230007,-527.24,0.0007452,120]
[354553592,1740574230032,-1451.47,0.0007452,120]
[354553593,1740574230059,-737.18,0.0007452,120]
[354553594,1740574230086,-6042.79,0.0007452,7]
[354553595,1740574230112,-500.0,0.0007452,120]
[354553596,1740574230138,-500.0,0.0007452,120]
[354553597,1740574230163,-500.0,0.0007452,120]
[354553598,1740574230190,-1329.29,0.0007452,120]
[354553599,1740574230217,-969.4,0.0007452,3]
[354553600,1740574230245,-2354.76,0.0007452,120]
[354553601,1740574230271,-614.03,0.0007452,120]
[354553602,1740574230298,-8704.1,0.0007452,120]
[354553603,1740574230325,-623.77,0.0007452,120]
[354553604,1740574230352,-500.0,0.0007452,120]
[354553605,1740574230378,-151.0,0.00075342,120]
[354553606,1740574230406,-151.0,0.00075342,120]
[354553607,1740574230433,-12944.58,0.00075342,120]
[354553608,1740574230459,-151.0,0.00075342,120]
[354553609,1740574230484,-183.423,0.00075625,120]
[354553610,1740574230511,-183.424,0.00075625,120]
[354553611,1740574230539,-710.54,0.00076438,120]
[354553612,1740574230564,-1668.14,0.00076986,120]
[354553613,1740574230590,-925.76,0.00076986,120]
[354553614,1740574230616,-515.49,0.00076986,120]
[354553615,1740574230640,-593.77,0.00076986,15]
[354553616,1740574230664,-1159.7,0.00076986,120]
[354553617,1740574230690,-500.0,0.00076986,120]
[354553618,1740574230716,-2082.16,0.00076986,120]
[354553619,1740574230742,-612.21,0.00076986,120]
[354553620,1740574230768,-500.0,0.00076986,120]
[354553621,1740574230795,-500.0,0.00076986,120]
[354553622,1740574230820,-500.0,0.00076986,120]
[354553623,1740574230848,-688.17,0.00076986,120]
[354553624,1740574230875,-527.24,0.00076986,120]
[354553625,1740574230899,-1451.47,0.00076986,120]
[354553626,1740574230926,-737.18,0.00076986,120]
[354553627,1740574230953,-6042.79,0.00076986,7]
[354553628,1740574230979,-526.77184,0.00076986,120]
[354553629,1740574231005,-500.0,0.00076986,120]
[354553630,1740574231030,-500.0,0.00076986,120]
[354553631,1740574231056,-1329.29,0.00076986,120]
[354553632,1740574231082,-969.4,0.00076986,3]
[354553633,1740574231111,-2354.76,0.00076986,120]
[354553634,1740574231138,-614.03,0.00076986,120]
[354553635,1740574231165,-8704.1,0.00076986,120]
[354553636,1740574231192,-623.77,0.00076986,120]
[354553637,1740574231218,-500.0,0.00076986,120]
[354553638,1740574231243,-1000.0,0.00079,120]
[354553639,1740574231268,-1500.0,0.00079371,14]
[354553640,1740574231294,-1668.14,0.00079452,120]
[354553641,1740574231320,-925.76,0.00079452,120]
[354553642,1740574231346,-515.49,0.00079452,120]
[354553643,1740574231371,-593.77,0.00079452,15]
[354553644,1740574231396,-1159.7,0.00079452,120]
[354553645,1740574231423,-500.0,0.00079452,120]
[354553646,1740574231451,-2082.16,0.00079452,120]
[354553647,1740574231477,-612.21,0.00079452,120]
[354553648,1740574231506,-500.0,0.00079452,120]
[354553649,1740574231533,-500.0,0.00079452,120]
[354553650,1740574231560,-500.0,0.00079452,120]
[354553652,1740574231591,-688.17,0.00079452,120]
[354553655,1740574231617,-12944.58,0.00079452,120]
[354553658,1740574231643,-527.24,0.00079452,120]
[354553659,1740574231670,-1451.47,0.00079452,120]
[354553660,1740574231696,-737.18,0.00079452,120]
[354553661,1740574231722,-6042.79,0.00079452,7]
[354553662,1740574231748,-500.0,0.00079452,120]
[354553663,1740574231774,-500.0,0.00079452,120]
[354553664,1740574231803,-1329.29,0.00079452,120]
[354553665,1740574231837,-969.4,0.00079452,3]
[354553666,1740574231864,-2354.76,0.00079452,120]
[354553667,1740574231891,-614.03,0.00079452,120]
[354553668,1740574231918,-8704.1,0.00079452,120]
[354553669,1740574231944,-623.77,0.00079452,120]
[354553670,1740574231969,-441.13,0.00079452,120]
[354553673,1740574231993,-710.54,0.00079726,120]